[Event "Marshall Masters September 2024"]
[Site "New York"]
[Date "2024.09.20"]
[Round "3.1"]
[White "Zhu, Linxi"]
[Black "Tang, Andrew"]
[Result "0-1"]
[ECO "C60"]
[WhiteElo "2114"]
[BlackElo "2524"]
[Annotator "TA"]
[PlyCount "88"]
[EventDate "2024.09.20"]
[EventCountry "USA"]
[SourceTitle "playchess.com"]
[Source "ChessBase"]
[SourceQuality "1"]
[TimeMode "Bronstein"]
[TimeControl "1500+5"]

{[%evp 15,88,25,23,7,19,14,8,-9,-25,-14,-15,-36,-15,-18,0,-7,-3,-135,-137,-116,-127,-130,-102,-228,-226,-232,-234,-238,-226,-283,-277,-356,-358,-349,-360,-455,-419,-430,-417,-397,-331,-542,-529,-556,-547,-579,-393,-368,-379,-535,-504,-629,-402,-1229,-515,-500,-481,-566,-555,-29977,-29978,-5418,-1948,-29980,-29981,-29981,-29982,-29981,-29982,-29982,-29983,-29983,-29984,-29983,-29983]} 1. e4 {[%emt 0:00:05]} e5 {[%emt 0:00:05]} 2. Nf3 {[%emt 0:00:05]} Nc6 {[%emt 0:00:05]} 3. Bb5 {[%emt 0:00:05]} g6 {[%emt 0:00:05]} 4. O-O {[%emt 0:00:07]} Bg7 {[%emt 0:00:05]} 5. c3 {[%emt 0:00:05]} a6 {[%emt 0:00:05]} 6. Ba4 {[%emt 0:00:05]} b5 {[%emt 0:00:05]} 7. Bc2 {[%emt 0:00:08]} d6 {[%emt 0:00:05]} 8. h3 {[%emt 0:00:10]} Nf6 {[%emt 0:00:05]} 9. d4 {[%emt 0:00:05]} O-O {[%emt 0:00:05]} 10. Re1 {[%emt 0:00:16]} Bb7 {[%emt 0:00:05]} 11. a4 {[%emt 0:00:09] The position is equal.} exd4 {[%emt 0:00:16]} 12. cxd4 {[%emt 0:00:05]} Nb4 {[%emt 0:00:05]} 13. Bg5 {[%emt 0:01:42]} h6 {[%emt 0:00:09]} 14. Bf4 {[%emt 0:01:17]} Re8 {[%emt 0:00:20] [#] aiming for ...Nxc2.} 15. Nbd2 $1 {[%emt 0:00:31]} c5 {[%emt 0:00:05]} 16. d5 {[%emt 0:00:37]} (16. axb5 $11 {keeps the balance.} axb5 17. Rxa8 Bxa8 18. Bb1) 16... Nh5 $36 {[%emt 0:01:13][%csl LRb2,LRf4][%mdl 2048] Black is in control.} 17. Be3 {[%emt 0:01:29]} Bxb2 {[%emt 0:00:05] Black is much more active.} 18. Rb1 {[%emt 0:00:06]} Bg7 {[%emt 0:00:05]} 19. g4 {[%emt 0:01:53] This move loses the game for White.} (19. axb5 $17 {was worth a try.} axb5 20. Rxb4 cxb4 21. Nd4) 19... Nf6 $19 {[%emt 0:00:05]} 20. axb5 {[%emt 0:06:12]} axb5 {[%emt 0:00:12]} 21. Rxb4 {[%emt 0:00:50]} cxb4 {[%emt 0:00:05]} 22. Bd4 {[%emt 0:00:25]} Nd7 {[%emt 0:00:24]} 23. Nb3 {[%emt 0:00:29]} Bxd4 {[%emt 0:00:08]} 24. Qxd4 {[%emt 0:00:36]} Qf6 {[%emt 0:00:05] Prevents Qxb4} 25. Qd1 {[%emt 0:01:02]} Rac8 {[%emt 0:00:48][%cal Oc8c2] Strongly threatening ...Rxc2!} 26. Nbd4 {[%emt 0:01:07]} Ne5 {[%emt 0:01:43]} 27. Nxe5 {[%emt 0:00:09]} dxe5 {[%emt 0:00:08]} 28. Nxb5 {[%emt 0:00:07]} (28. Ne2) 28... Qb6 {[%emt 0:00:14][%cal Ob7a6] And now ...Ba6! would win.} 29. Ba4 {[%emt 0:00:12]} Ba6 {[%emt 0:00:06]} 30. Nc7 {[%emt 0:01:51]} Red8 {[%emt 0:01:29]} 31. Nxa6 {[%emt 0:00:05]} Qxa6 {[%emt 0:00:05]} 32. Qb3 {[%emt 0:00:05]} (32. Re3 $142) 32... Rc4 {[%emt 0:00:37] ...Rdc8 would now be deadly.} 33. Bc6 {[%emt 0:00:49]} Rd4 {[%emt 0:00:05]} 34. Re3 {[%emt 0:01:06]} (34. Kg2 $142) 34... Rd6 {[%emt 0:00:44]} (34... Qa1+ $142 35. Kg2 Rd1) 35. Kg2 {[%emt 0:00:14]} Kg7 {[%emt 0:00:05] White must now prevent ...Qa1.} 36. Qb2 {[%emt 0:00:44]} Rf6 {[%emt 0:00:05]} 37. Qb3 {[%emt 0:01:35] Repels Rd1} Rd2 {[%emt 0:00:15]} 38. Rf3 {[%emt 0:00:08]} Qe2 {[%emt 0:00:09]} (38... Rxf3 $142 39. Qxf3 Rd3) 39. Rxf6 {[%emt 0:00:45]} Kxf6 {[%emt 0:00:05] Black mates.} 40. Qf3+ {[%emt 0:00:12]} Qxf3+ {[%emt 0:00:05]} 41. Kxf3 {[%emt 0:00:05] KR-KB} b3 {[%emt 0:00:05]} 42. Ke3 {[%emt 0:00:05]} Rd4 {[%emt 0:00:06]} 43. Bb5 {[%emt 0:00:05]} b2 {[%emt 0:00:05]} 44. Bd3 {[%emt 0:00:05] [#]} Rxd3+ $1 {[%emt 0:17:34][%mdl 512] Weighted Error Value: White=0.72/Black=0.57.  Mistake:       	White=5     	---        Inaccurate:     	White=1     	Black=2      OK:         	White=8     	Black=13     Best:        	---       	Black=4      Strong:       	White=1     	---} 0-1

[Event "Marshall Masters September 2024"]
[Site "New York"]
[Date "2024.09.20"]
[Round "3.2"]
[White "Paragua, Mark"]
[Black "Putnam, Liam"]
[Result "0-1"]
[ECO "C78"]
[WhiteElo "2454"]
[BlackElo "2398"]
[Annotator "TA"]
[PlyCount "126"]
[EventDate "2024.09.20"]
[EventCountry "USA"]
[SourceTitle "playchess.com"]
[Source "ChessBase"]
[SourceQuality "1"]
[TimeMode "Bronstein"]
[TimeControl "1500+5"]

{[%evp 36,126,48,45,41,25,30,0,0,0,0,0,13,0,49,41,41,45,95,97,105,27,26,25,20,18,26,0,0,0,0,0,6,5,4,0,0,0,0,0,0,0,0,0,0,-46,-47,-45,-45,-61,-51,-84,-21,-25,-31,-29,-14,-68,-77,-68,-57,-54,-52,-65,-12,-31,-8,-97,-112,-108,-54,-90,-96,-202,-202,-383,-383,-383,-383,-2585,0,-22,-22,-22,-22,-122,-122,-122,-127,-923,-438,-437,-430]} 1. e4 {[%emt 0:00:05]} e5 {[%emt 0:01:32]} 2. Nf3 {[%emt 0:00:05]} Nc6 {[%emt 0:00:05]} 3. Bb5 {[%emt 0:00:47]} a6 {[%emt 0:00:05]} 4. Ba4 {[%emt 0:00:05]} Nf6 {[%emt 0:00:08]} 5. d3 {[%emt 0:00:13]} b5 {[%emt 0:00:13]} 6. Bb3 {[%emt 0:00:05]} Bc5 {[%emt 0:00:11]} 7. c3 {[%emt 0:00:41]} O-O {[%emt 0:00:41]} 8. O-O {[%emt 0:00:07]} d6 {[%emt 0:00:46]} 9. Nbd2 {[%emt 0:00:54]} Bb6 {[%emt 0:02:06]} 10. a4 {[%emt 0:00:42]} Rb8 {[%emt 0:01:30]} 11. h3 {[%emt 0:01:31]} Be6 {[%emt 0:01:37]} 12. Bxe6 {[%emt 0:03:52]} fxe6 {[%emt 0:00:05]} 13. Nb3 {[%emt 0:00:18]} Qe8 {[%emt 0:03:40]} 14. axb5 {[%emt 0:00:10]} axb5 {[%emt 0:00:05]} 15. Be3 {[%emt 0:00:12]} Nh5 {[%emt 0:01:10]} 16. Bxb6 {[%emt 0:01:47]} Rxb6 {[%emt 0:00:38]} 17. g3 {[%emt 0:01:34]} Rb8 {[%emt 0:02:21]} 18. Kh2 {[%emt 0:01:58]} Ra8 {[%emt 0:01:36]} 19. Rxa8 {[%emt 0:00:57]} Qxa8 {[%emt 0:00:05]} 20. d4 {[%emt 0:00:28]} Nf6 {[%emt 0:01:31]} 21. Ng5 {[%emt 0:04:21]} Re8 {[%emt 0:01:31]} 22. Re1 {[%emt 0:01:05]} h6 {[%emt 0:00:25]} 23. Nf3 {[%emt 0:00:23]} Rf8 {[%emt 0:01:13]} 24. dxe5 {[%emt 0:00:13]} Nxe5 {[%emt 0:01:12]} (24... Nxe4 $11 {deserves consideration.} 25. Rxe4 Nxe5 26. Rxe5 dxe5) 25. Nxe5 $14 {[%emt 0:00:05]} dxe5 {[%emt 0:00:05]} 26. Nc5 {[%emt 0:00:08]} Qa7 {[%emt 0:00:29]} (26... Rf7 $14) 27. b4 $16 {[%emt 0:04:29]} (27. Nxe6 $2 Qxf2+ (27... Re8 $2 28. Nxc7 Qxc7 29. Kg2 $19) 28. Kh1 Nh5 $19) 27... Qa2 {[%emt 0:00:06]} 28. Qe2 {[%emt 0:00:00]} (28. Re2 $16 Qc4 29. Re3) 28... Ra8 $11 {[%emt 0:00:07]} 29. Kg2 {[%emt 0:00:00]} (29. Qxb5 Qxf2+ 30. Kh1 Qxe1+ 31. Kg2 Ra2+ (31... Nxe4 32. Qe8+ Kh7 33. Qg8+ Kxg8 34. Nxe4 Ra2+ 35. Nd2 Rxd2+ 36. Kf3 Qe2#) (31... Nxe4 32. Qb8+ Kh7 33. Qg8+ Kxg8 34. Nxe4 Ra2+ 35. Nd2 Rxd2+ 36. Kf3 Qe2#)) 29... Qxe2 {[%emt 0:00:07]} 30. Rxe2 {[%emt 0:00:00]} Kf7 {[%emt 0:00:05]} 31. Rd2 {[%emt 0:00:00]} Ke7 {[%emt 0:00:05]} 32. Kf3 {[%emt 0:00:00]} g5 {[%emt 0:00:14]} 33. Ke3 {[%emt 0:00:00]} Ra1 {[%emt 0:00:05]} 34. Nd3 {[%emt 0:00:00]} Nd7 {[%emt 0:00:13]} 35. Kf3 {[%emt 0:00:00]} Ra3 {[%emt 0:00:05]} 36. Rc2 {[%emt 0:00:00]} Kf6 {[%emt 0:00:12]} 37. Ke2 {[%emt 0:00:00]} Nb6 {[%emt 0:00:05]} 38. Ne1 {[%emt 0:00:00]} Na4 {[%emt 0:00:09]} 39. Kd2 {[%emt 0:00:00]} c5 {[%emt 0:00:13]} 40. Ng2 {[%emt 0:00:00]} (40. Nd3 $11 {might be stronger.}) 40... cxb4 $15 {[%emt 0:00:13]} 41. cxb4 {[%emt 0:00:00]} Rf3 {[%emt 0:00:08]} (41... Rb3 42. Ne3 $17) 42. Ke2 {[%emt 0:00:00]} Rb3 {[%emt 0:00:06]} 43. Ne3 {[%emt 0:00:00]} h5 {[%emt 0:00:23]} ({Reject} 43... Rxb4 $6 44. Ng4+ Ke7 45. Ke3 $11) (43... Nc3+ $17 44. Kf3 h5) 44. Rc6 $11 {[%emt 0:00:00]} Ke7 {[%emt 0:00:05]} 45. Rc7+ {[%emt 0:00:00]} Kd6 {[%emt 0:00:18]} 46. Rh7 {[%emt 0:00:00]} (46. Rg7 $11) 46... Rxb4 $15 {[%emt 0:00:05]} 47. Rxh5 {[%emt 0:00:00]} Nc3+ {[%emt 0:00:05]} ({Don't play} 47... Rxe4 48. Rxg5 b4 49. Rg8 $11) 48. Kf3 {[%emt 0:00:00]} Nxe4 {[%emt 0:00:05]} ({Much worse is} 48... Rxe4 49. Rxg5 b4 50. Rg7 $11) 49. Rh8 {[%emt 0:00:00]} Nd2+ {[%emt 0:00:05]} (49... Nc5 $15) 50. Ke2 {[%emt 0:00:00]} Nc4 {[%emt 0:00:05]} 51. Ng4 {[%emt 0:00:00]} (51. h4 $11) 51... Rb2+ $17 {[%emt 0:00:05]} 52. Kd3 {[%emt 0:00:00] [#]} Rb3+ {[%emt 0:00:10]} (52... Kc5 $1 $17 {...Rd2+ would now be deadly.} 53. Rb8 Ra2) 53. Kc2 {[%emt 0:00:00]} Rf3 {[%emt 0:00:05]} 54. Kd1 {[%emt 0:00:00]} (54. Rd8+ $17 Kc7 55. Rd3) 54... b4 $19 {[%emt 0:00:09]} 55. Rc8 $2 {[%emt 0:00:00]} (55. Rb8 b3 56. Ne3 Nxe3+ 57. Ke2) 55... Rc3 $19 {[%emt 0:00:05]} 56. Ke2 {[%emt 0:00:03] [#]} Rc2+ $1 {[%emt 0:00:05]} 57. Kd1 $2 {[%emt 0:00:03]} (57. Kd3 Rd2+ (57... Rc3+ $2 58. Ke2 $19) 58. Kxc4 Rc2+ 59. Kxb4 Rxc8 60. Nf6) 57... Rc3 $2 {[%emt 0:00:07]} ({Black should try} 57... Ne3+ $19 58. Nxe3 Rxc8) 58. Ke2 $1 $11 {[%emt 0:00:03]} b3 {[%emt 0:00:30]} 59. Ne3 $1 {[%emt 0:00:03]} b2 {[%emt 0:00:05]} 60. Nxc4+ {[%emt 0:00:03]} (60. Rb8 $1 $11) 60... Rxc4 $17 {[%emt 0:00:05]} 61. Rb8 {[%emt 0:00:03]} Rc2+ {[%emt 0:00:05]} 62. Ke3 $2 {[%emt 0:00:03][%mdl 8192]} (62. Kd3 $17 Rxf2 63. h4) 62... Kd5 $19 {[%emt 0:00:05]} 63. Kd3 {[%emt 0:00:03]} Rxf2 {[%emt 0:00:05]} 0-1

[Event "Marshall Masters September 2024"]
[Site "New York"]
[Date "2024.09.20"]
[Round "3.3"]
[White "Das, Aditeya"]
[Black "Bonin, Jay"]
[Result "0-1"]
[ECO "B03"]
[WhiteElo "2106"]
[BlackElo "2129"]
[Annotator "RC"]
[PlyCount "108"]
[EventDate "2024.09.20"]
[EventCountry "USA"]
[SourceTitle "playchess.com"]
[Source "ChessBase"]
[SourceQuality "1"]
[TimeMode "Bronstein"]
[TimeControl "1500+5"]

1. e4 {[%emt 0:00:05]} Nf6 {[%emt 0:00:11]} 2. e5 {[%emt 0:00:05]} Nd5 {[%emt 0:00:07]} 3. c4 {[%emt 0:00:05]} Nb6 {[%emt 0:00:05]} 4. d4 {[%emt 0:00:05]} d6 {[%emt 0:00:07]} 5. f4 {[%emt 0:00:05]} dxe5 {[%emt 0:00:35]} 6. fxe5 {[%emt 0:00:05]} Nc6 {[%emt 0:00:08]} 7. Be3 {[%emt 0:00:05]} Bf5 {[%emt 0:00:13]} 8. Nc3 {[%emt 0:00:20]} e6 {[%emt 0:00:24]} 9. Be2 {[%emt 0:00:16]} Nb4 {[%emt 0:03:15]} 10. Rc1 {[%emt 0:00:32]} c5 {[%emt 0:00:30]} 11. Nf3 {[%emt 0:00:54]} Bg4 {[%emt 0:03:11]} 12. O-O {[%emt 0:01:45]} Bxf3 {[%emt 0:02:11]} 13. Rxf3 {[%emt 0:00:41]} cxd4 {[%emt 0:00:28]} 14. Bxd4 {[%emt 0:01:26]} Nc6 {[%emt 0:00:17]} 15. Rd3 {[%emt 0:00:56]} Nxd4 {[%emt 0:00:47]} 16. Kh1 {[%emt 0:00:05]} Bc5 {[%emt 0:01:36]} 17. Nb5 {[%emt 0:01:08]} Nxb5 {[%emt 0:01:54]} 18. cxb5 {[%emt 0:01:54]} Qe7 {[%emt 0:00:20]} 19. Qc2 {[%emt 0:00:05]} Rc8 {[%emt 0:02:42]} 20. b4 {[%emt 0:03:50]} Bd4 {[%emt 0:00:30]} 21. Qxc8+ {[%emt 0:01:18]} Nxc8 {[%emt 0:00:05]} 22. Rxc8+ {[%emt 0:00:10]} Kd7 {[%emt 0:00:05]} 23. Rc4 {[%emt 0:00:39]} Rb8 {[%emt 0:01:21]} 24. Rcxd4+ {[%emt 0:02:45]} Ke8 {[%emt 0:00:06]} 25. b6 {[%emt 0:00:22]} axb6 {[%emt 0:00:34]} 26. Rd1 {[%emt 0:01:27]} Qg5 {[%emt 0:00:31]} 27. Bb5+ {[%emt 0:00:29]} Kf8 {[%emt 0:00:07]} 28. Rd7 {[%emt 0:00:55]} Qxe5 {[%emt 0:00:22]} 29. a4 {[%emt 0:00:05]} Rc8 {[%emt 0:00:22]} 30. Rxb7 {[%emt 0:00:10]} Qd5 {[%emt 0:00:06]} 31. Rd7 {[%emt 0:00:14]} Qg5 {[%emt 0:00:24]} 32. Ba6 {[%emt 0:00:36]} Rc1 {[%emt 0:00:15]} 33. R7d6 {[%emt 0:00:54]} Rxd1+ {[%emt 0:00:13]} 34. Rxd1 {[%emt 0:00:05]} Qg4 {[%emt 0:00:09]} 35. Rb1 {[%emt 0:00:49]} Qe4 {[%emt 0:00:05]} 36. Rc1 {[%emt 0:00:05]} Qxb4 {[%emt 0:00:07]} 37. Bb5 {[%emt 0:00:05]} f5 {[%emt 0:00:26]} 38. Kg1 {[%emt 0:00:11]} Qd4+ {[%emt 0:00:09]} 39. Kh1 {[%emt 0:00:05]} Qd2 {[%emt 0:00:09]} 40. Rf1 {[%emt 0:00:05]} Ke7 {[%emt 0:00:08]} 41. g3 {[%emt 0:00:10]} g6 {[%emt 0:00:05]} 42. Kg1 {[%emt 0:00:06]} e5 {[%emt 0:00:05]} 43. Rf2 {[%emt 0:00:05]} Qd4 {[%emt 0:00:13]} 44. Kg2 {[%emt 0:00:06]} e4 {[%emt 0:00:05]} 45. Re2 {[%emt 0:00:05]} g5 {[%emt 0:00:08]} 46. Rf2 {[%emt 0:00:07]} e3 {[%emt 0:00:13]} 47. Re2 {[%emt 0:00:07]} Qe4+ {[%emt 0:00:05]} 48. Kg1 {[%emt 0:00:10]} f4 {[%emt 0:00:05]} 49. gxf4 {[%emt 0:00:09]} gxf4 {[%emt 0:00:05]} 50. Rg2 {[%emt 0:00:05]} f3 {[%emt 0:00:08]} 51. Rg7+ {[%emt 0:00:05]} Kf6 {[%emt 0:00:05]} 52. Rg3 {[%emt 0:00:05]} e2 {[%emt 0:00:08]} 53. Rxf3+ {[%emt 0:00:06]} Qxf3 {[%emt 0:00:05]} 54. Bxe2 {[%emt 0:00:05]} Qxe2 {[%emt 0:00:05]} 0-1

[Event "Marshall Masters September 2024"]
[Site "New York"]
[Date "2024.09.20"]
[Round "3.4"]
[White "Weisz, Bryan"]
[Black "Rand, Steven J"]
[Result "0-1"]
[ECO "B12"]
[WhiteElo "2069"]
[BlackElo "1978"]
[Annotator "RC"]
[PlyCount "70"]
[EventDate "2024.09.20"]
[EventCountry "USA"]
[SourceTitle "playchess.com"]
[Source "ChessBase"]
[SourceQuality "1"]
[TimeMode "Bronstein"]
[TimeControl "1500+5"]

1. e4 {[%emt 0:01:13]} c6 {[%emt 0:00:05]} 2. d4 {[%emt 0:00:06]} d5 {[%emt 0:00:05]} 3. f3 {[%emt 0:00:05]} dxe4 {[%emt 0:00:05]} 4. fxe4 {[%emt 0:00:05]} e5 {[%emt 0:00:05]} 5. Nf3 {[%emt 0:00:05]} Bg4 {[%emt 0:00:07]} 6. c3 {[%emt 0:00:05]} Nd7 {[%emt 0:00:09]} 7. Bd3 {[%emt 0:00:08]} Bd6 {[%emt 0:00:15]} 8. O-O {[%emt 0:00:05]} Ngf6 {[%emt 0:00:10]} 9. Bg5 {[%emt 0:00:22]} h6 {[%emt 0:02:05]} 10. Bh4 {[%emt 0:00:05]} g5 {[%emt 0:00:42]} 11. Bg3 {[%emt 0:00:46]} Qe7 {[%emt 0:00:17]} 12. Nbd2 {[%emt 0:00:17]} Nh5 {[%emt 0:00:54]} 13. Nc4 {[%emt 0:00:29]} Nxg3 {[%emt 0:00:19]} 14. hxg3 {[%emt 0:00:14]} Bc7 {[%emt 0:00:55]} 15. Ne3 {[%emt 0:00:14]} h5 {[%emt 0:01:12]} 16. Nf5 {[%emt 0:01:16]} Bxf5 {[%emt 0:00:41]} 17. exf5 {[%emt 0:00:05]} O-O-O {[%emt 0:00:30]} 18. Qe2 {[%emt 0:01:11]} Qf6 {[%emt 0:01:55]} 19. Rfe1 {[%emt 0:19:44]} exd4 {[%emt 0:01:19]} 20. cxd4 {[%emt 0:00:00]} Bxg3 {[%emt 0:00:20]} 21. Rec1 {[%emt 0:00:00]} g4 {[%emt 0:01:13]} 22. Ne5 {[%emt 0:00:00]} Nxe5 {[%emt 0:01:11]} 23. dxe5 {[%emt 0:00:00]} Qxe5 {[%emt 0:00:26]} 24. Qxe5 {[%emt 0:00:00]} Bxe5 {[%emt 0:00:05]} 25. Rd1 {[%emt 0:00:00]} Bxb2 {[%emt 0:00:59]} 26. Rab1 {[%emt 0:00:00]} Bd4+ {[%emt 0:00:18]} 27. Kh1 {[%emt 0:00:00]} h4 {[%emt 0:00:35]} 28. f6 {[%emt 0:00:00]} g3 {[%emt 0:01:43]} 29. Re1 {[%emt 0:00:00]} Bxf6 {[%emt 0:00:55]} 30. Bc4 {[%emt 0:00:00]} Rd7 {[%emt 0:02:07]} 31. Rf1 {[%emt 0:00:00]} Rh6 {[%emt 0:00:15]} 32. Rf5 {[%emt 0:00:00]} Rd2 {[%emt 0:00:45]} 33. Kg1 {[%emt 0:00:00]} h3 {[%emt 0:00:26]} 34. gxh3 {[%emt 0:00:00]} Bd4+ {[%emt 0:00:08]} 35. Kf1 {[%emt 0:00:00]} g2+ {[%emt 0:00:17]} 0-1